fUSD/lending_fUSD_20241112
["ID","MTS","AMOUNT","RATE_DAILY","PERIOD"]
[342091813,1731430240176,-355.14,0.00013,2]
[342091821,1731430240242,-278.10950402,0.00013,2]
[342091823,1731430240251,-377.07844683,0.00013,2]
[342092127,1731430243282,-4337.543176,0.00013,2]
[342092130,1731430243294,-8658.10561539,0.00013,2]
[342092132,1731430243305,-3298.47022087,0.00013,2]
[342092134,1731430243315,-11317.93899592,0.00013,2]
[342092136,1731430243327,-770.17479423,0.00013,2]
[342092141,1731430243359,-4007.79999926,0.00013,2]
[342092147,1731430243414,-482.6774985,0.00013,2]
[342092149,1731430243425,-1093.94052695,0.00013,2]
[342092151,1731430243437,-3840.58171996,0.00013,2]
[342092154,1731430243448,-4924.06300256,0.00013,2]
[342092405,1731430245966,-606.15244707,0.00013,2]
[342092411,1731430246018,-16773.43720112,0.00013,2]
[342092428,1731430246192,-251.17851693,0.00013,2]
[342092430,1731430246204,-87066.99999999,0.00013,2]
[342092607,1731430454696,150.0,0.00012303,2]
[342092608,1731430454718,150.0,0.00012303,2]
[342092609,1731430454739,150.0,0.00012303,2]
[342092610,1731430454761,69.6,0.00012303,2]
[342092612,1731430587266,164.28,0.00012273,2]
[342092613,1731430622787,713.47,0.00010315,2]
[342092614,1731430660980,250.0,0.00012242,2]
[342092615,1731430716675,150.0,0.00012235,2]
[342092616,1731430716697,1.87,0.00012235,2]
[342092617,1731430761594,150.0,0.00012202,2]
[342092618,1731430761614,150.0,0.00012202,2]
[342092619,1731430761634,150.0,0.00012202,2]
[342092620,1731430761654,150.0,0.00012202,2]
[342092621,1731430761674,150.0,0.00012202,2]
[342092622,1731430761693,150.0,0.00012202,2]
[342092623,1731430761713,88.64,0.00012202,2]
[342092624,1731430819810,223.52,0.00012213,2]
[342092627,1731430978455,-1766.0,0.00012363,2]
[342092628,1731430996100,1000.0,0.00012136,2]
[342092705,1731431015074,150.0,0.00012158,2]
[342092706,1731431015095,10.2,0.00012158,2]
[342092709,1731431142584,150.0,0.00012311,2]
[342092710,1731431142605,150.0,0.00012311,2]
[342092711,1731431142626,150.0,0.00012311,2]
[342092712,1731431142651,150.0,0.00012311,2]
[342092713,1731431142672,150.0,0.00012311,2]
[342092714,1731431142693,150.0,0.00012311,2]
[342092715,1731431142714,150.0,0.00012311,2]
[342092716,1731431142734,150.0,0.00012311,2]
[342092717,1731431142755,149.03,0.00012311,2]
[342092718,1731431155023,150.0,0.00010959,2]
[342092719,1731431155046,150.0,0.00010959,2]
[342092720,1731431155068,150.0,0.00010959,2]
[342092721,1731431155089,125.83,0.00010959,2]
[342092722,1731431161238,2868.0,0.00012119,2]
[342092809,1731431265202,150.0,0.00012127,2]
[342092810,1731431265225,150.0,0.00012127,2]
[342092811,1731431265251,84.32,0.00012127,2]
[342092872,1731431398797,151.87,0.0001194,2]
[342092873,1731431401747,154.9,0.0001194,2]
[342092874,1731431403212,150.0,0.00012127,2]
[342092962,1731431431012,689.43,0.00010026,2]
[342092963,1731431431245,689.43,0.0001229,2]
[342092971,1731431432146,-300.0,0.00012573,2]
[342092972,1731431432156,-46747.0,0.00012574,2]
[342092973,1731431432165,-485.2899,0.000126,2]
[342092974,1731431432174,-847.505,0.000126,2]
[342092975,1731431432184,-190.1715,0.000126,2]
[342092976,1731431432193,-167.0,0.00012617,2]
[342092977,1731431432203,-1000.0,0.000127,2]
[342092978,1731431432212,-287.59761672,0.000128,2]
[342092979,1731431432223,-712.40238328,0.000128,2]
[342092980,1731431432232,-150.0,0.0001282,2]
[342092981,1731431432242,-458.74761671,0.00012821,2]
[342092982,1731431432271,-555.05850133,0.00012821,2]
[342093295,1731431438228,-680.96908196,0.00012821,2]
[342093296,1731431438237,-3000.0,0.0001287,2]
[342093297,1731431438248,-1518.79,0.0001287,2]
[342093298,1731431438257,-150.0,0.00012877,2]
[342093299,1731431438266,-817.8178865,0.00012899,2]
[342093300,1731431438276,-7844.98,0.00012899,2]
[342093301,1731431438286,-817.81788647,0.00012899,2]
[342093302,1731431438295,-817.81788647,0.00012899,2]
[342093303,1731431438304,-817.81788647,0.00012899,2]
[342093304,1731431438316,-79.24481963,0.00012899,2]
[342093305,1731431438328,-738.57306684,0.00012899,2]
[342093306,1731431438338,-133.61693316,0.000129,2]
[342093307,1731431438350,-684.20095331,0.000129,2]
[342093308,1731431438361,-187.99904669,0.000129,2]
[342093309,1731431438372,-629.81883978,0.000129,2]
[342093310,1731431438382,-394.91117022,0.000129,2]
[342093311,1731431438426,-2935.82482978,0.000129,2]
[342093312,1731431438435,-817.81788647,0.000129,2]
[342093313,1731431438444,-817.81788647,0.000129,2]
[342093314,1731431438453,-200.0,0.000129,2]
[342093315,1731431438462,-317.8528,0.000129,2]
[342093316,1731431438471,-196.63091539,0.000129,2]
[342093317,1731431438482,-35000.0,0.000129,2]
[342093318,1731431438491,-307.81759756,0.000129,2]
[342093319,1731431438501,-5000.0,0.000129,2]
[342093320,1731431438510,-817.81788647,0.000129,2]
[342093321,1731431438520,-689.98921738,0.000129,2]
[342093322,1731431438530,-569.62073428,0.000129,2]
[342093323,1731431438539,-1087.0,0.000129,2]
[342093324,1731431438548,-918.112,0.00012901,2]
[342093325,1731431438557,-150.0,0.00012921,2]
[342093326,1731431438566,-628.0,0.00012921,2]
[342093327,1731431438575,-1991.0,0.00012921,2]
[342093328,1731431438584,-1923.0,0.00012921,2]
[342093329,1731431438593,-559.0,0.00012921,2]
[342093330,1731431438603,-1259.0,0.00012921,2]
[342093331,1731431438612,-3745.0,0.00012921,2]
[342093332,1731431438622,-814.0,0.00012921,2]
[342093333,1731431438631,-3487.0,0.00012921,2]
[342093334,1731431438640,-922.0,0.00012921,2]
[342093335,1731431438650,-3746.422,0.00012936,2]
[342093336,1731431438658,-5930.0,0.00012936,2]
[342093337,1731431438667,-150.0,0.00012936,2]
[342093338,1731431438676,-1159.0,0.00012936,2]
[342093339,1731431438686,-1091.0,0.00012936,2]
[342093340,1731431438696,-160.40525526,0.00012973,2]
[342093341,1731431438706,-500.0,0.00012973,2]
[342093342,1731431438715,-627.1938694,0.00012973,2]
[342093343,1731431438725,-500.0,0.00012973,2]
[342093344,1731431438734,-500.0,0.00012973,2]
[342093346,1731431438744,-444.62130455,0.00012973,2]
[342093348,1731431438754,-503.87239915,0.00012973,2]
[342093350,1731431438763,-2675.0119807,0.00012978,5]
[342093352,1731431438772,-8837.0,0.00012986,2]
[342093354,1731431438783,-333.6637114,0.0001299,2]
[342093356,1731431438792,-1855.4789415,0.0001299,2]
[342093358,1731431438801,-617.4451355,0.0001299,2]
[342093360,1731431438811,-333.6637114,0.0001299,2]
[342093362,1731431438820,-333.6637114,0.0001299,2]
[342093364,1731431438829,-500.0,0.00012999,2]
[342093366,1731431438841,-500.0,0.00012999,2]
[342093368,1731431438850,-500.0,0.00012999,2]
[342093369,1731431438859,-500.0,0.00012999,2]
[342093372,1731431438869,-425.00185047,0.00012999,2]
[342093374,1731431438878,-500.0,0.00012999,2]
[342093375,1731431438887,-573.27626098,0.00012999,2]
[342093377,1731431438896,-573.27626098,0.00012999,2]
[342093379,1731431438906,-573.27626098,0.00012999,2]
[342093381,1731431438916,-573.27626098,0.00012999,2]
[342093382,1731431438925,-1375.0,0.00012999,2]
[342093383,1731431438935,-1000.0,0.00012999,2]
[342093384,1731431438945,-1280601.77731506,0.00013,2]
[342093385,1731431438954,-20230.58785019,0.00013,2]
[342093386,1731431438964,-256845.22774119,0.00013,2]
[342093387,1731431438976,-492498.89183799,0.00013,2]
[342093388,1731431438987,-31237.58315375,0.00013,2]
[342093421,1731431439290,-4115.39844193,0.00013,2]
[342093424,1731431439302,-996.65280074,0.00013,2]
[342093426,1731431439316,-1993.80312064,0.00013,2]
[342093488,1731431440080,-738.9162828,0.00013,2]
[342093491,1731431440101,-5265.99999998,0.00013,2]
[342093493,1731431440113,-3389.72110366,0.00013,2]
[342093495,1731431440124,-316.452994,0.00013,2]
[342093496,1731431440136,-3982.55,0.00013,2]
[342093504,1731431440209,-366.498113,0.00013,2]
[342093506,1731431440220,-2715.4853945,0.00013,2]
[342093508,1731431440231,-1302.70078278,0.00013,2]
[342093512,1731431440322,-2538.60349394,0.00013,2]
[342093789,1731431443064,-31380.15367542,0.00013,2]
[342093791,1731431443076,-4927.27540993,0.00013,2]
[342093814,1731431443281,-4483.55804979,0.00013,2]
[342093816,1731431443296,-1278.86878447,0.00013,2]
[342093819,1731431443308,-2999.89175077,0.00013,2]
[342093821,1731431443323,-87181.056695,0.00013,2]
[342093824,1731431443345,-1463.68272335,0.00013,2]
[342093826,1731431443357,-3250.42290572,0.00013,2]
[342093828,1731431443369,-1044.3,0.00013,2]
[342093831,1731431443380,-26232.56928001,0.00013,2]
[342093838,1731431443447,-24527.93791559,0.00013,2]
[342094100,1731431446020,-67565.07496012,0.00013,2]
[342094120,1731431446375,-1057.6,0.00013,2]
[342094121,1731431446388,-411.97930437,0.00013,2]
[342094123,1731431446400,-2047.75000387,0.00013,2]
[342094126,1731431446412,-1671.22323719,0.00013,2]
[342094128,1731431446423,-1285.04689225,0.00013,2]
[342094130,1731431446436,-347.97160119,0.00013,2]
[342094132,1731431446448,-16703.90259479,0.00013,2]
[342094187,1731431447052,-1199.39416244,0.00013,2]
[342094190,1731431447075,-1642.24033282,0.00013,2]
[342094194,1731431447111,-1306.01155124,0.00013,2]
[342094804,1731431506266,-568.92,0.00012478,2]
[342094805,1731431590266,-156.39,0.00012392,2]
[342094806,1731431740619,-1000.0,0.00012364,2]
[342094807,1731431853684,150.0,0.00012251,2]
[342094808,1731431853709,150.0,0.00012251,2]
[342094809,1731431853733,150.0,0.00012251,2]
[342094810,1731431853755,150.0,0.00012251,2]
[342094811,1731431853780,150.0,0.00012251,2]
[342094812,1731431853804,150.0,0.00012251,2]
[342094813,1731431853828,150.0,0.00012251,2]
[342094814,1731431853852,150.0,0.00012251,2]
[342094815,1731431853876,150.0,0.00012251,2]
[342094816,1731431853901,150.0,0.00012251,2]
[342094817,1731431853925,150.0,0.00012251,2]
[342094818,1731431853950,21274.4,0.00012251,2]
[342094820,1731431968123,150.0,0.00012227,2]
[342094821,1731431968148,42.16,0.00012227,2]
[342094822,1731432056117,150.0,0.00012227,2]
[342094823,1731432085767,159.8,0.00012251,2]
[342094824,1731432174851,747.69,0.00010331,2]
[342094825,1731432210796,1812.09,0.00012222,2]
[342094826,1731432223466,150.0,0.00012249,2]
[342094827,1731432232427,250.0,0.00012168,2]
[342094829,1731432303181,3125.02782088,0.000236,120]
[342094830,1731432395161,150.0,0.00011829,2]
[342094831,1731432395184,50.0,0.00011829,2]
[342094832,1731432433442,150.0,0.00011828,2]
[342094833,1731432433464,150.0,0.00011828,2]
[342094834,1731432433486,150.0,0.00011828,2]
[342094835,1731432433508,150.0,0.00011828,2]
[342094836,1731432433530,150.0,0.00011828,2]
[342094837,1731432433553,150.0,0.00011828,2]
[342094838,1731432433576,100.0,0.00011828,2]
[342094839,1731432497309,150.0,0.00012181,2]
[342094840,1731432497331,17.0,0.00012181,2]
[342094844,1731432518954,150.0,0.00011826,2]
[342094845,1731432518975,18.17,0.00011826,2]
[342094856,1731432584997,359.46,0.00011828,2]
[342094865,1731432632287,-747.69,0.00012595,2]
[342094866,1731432632297,-2113.8343131,0.00012602,2]
[342094867,1731432632306,-150.0,0.00012679,2]
[342094868,1731432632316,-300.0,0.00012679,2]
[342094869,1731432632325,-15685.87092362,0.0001268,2]
[342094870,1731432632409,-2185.76298043,0.0001268,2]
[342094871,1731432632498,-2373.60843279,0.0001268,2]
[342094874,1731432632919,-3345.58064132,0.0001268,2]
[342094879,1731432638386,-8293.65046546,0.0001268,2]
[342094880,1731432638735,-874.22,0.0001268,2]
[342094881,1731432638746,-4980.83042527,0.0001268,2]
[342094896,1731432639148,-2985.6761671,0.0001268,2]
[342094897,1731432639160,-3578.38539213,0.0001268,2]
[342094898,1731432639171,-868.30102522,0.0001268,2]
[342094978,1731432640319,-2062.54038856,0.0001268,2]
[342094980,1731432640331,-488.43378469,0.0001268,2]
[342094982,1731432640343,-4217.1367743,0.0001268,2]
[342094987,1731432640399,-349.0,0.0001268,2]
[342095000,1731432640539,-1539.37499999,0.0001268,2]
[342095007,1731432640620,-3959.55,0.0001268,2]
[342095271,1731432643420,-6698.27130549,0.0001268,2]
[342095281,1731432643604,-5723.51233619,0.0001268,2]
[342095282,1731432643615,-4259.95524817,0.0001268,2]
[342095283,1731432643627,-2290.26403072,0.0001268,2]
[342095284,1731432643642,-2836.3299994,0.0001268,2]
[342095306,1731432646790,-2809.20888867,0.0001268,2]
[342095307,1731432646810,-3021.63498,0.0001268,2]
[342095308,1731432646822,-9980.84496562,0.0001268,2]
[342095309,1731432646835,-87400.15102749,0.0001268,2]
[342095310,1731432683478,150.0,0.00011823,2]
[342095311,1731432683499,150.0,0.00011823,2]
[342095312,1731432683522,154.11,0.00011823,2]
[342095313,1731432777767,-6698.27130549,0.0001256,2]
[342095314,1731432777791,-300.0,0.00012579,2]
[342095315,1731432777815,-5194.0325,0.0001258,2]
[342095316,1731432777839,-472.771,0.0001258,2]
[342095317,1731432777864,-1515.1042,0.0001258,2]
[342095318,1731432777888,-3511.86841972,0.00012602,2]
[342095319,1731432777914,-2307.95257479,0.00012635,2]
[342095320,1731432783344,-1742.026,0.00012426,2]
[342095321,1731432784620,-174.106,0.00012426,2]
[342095322,1731432784644,-6553.0,0.00012553,2]
[342095323,1731432784671,-504.8939,0.0001258,2]
[342095324,1731432784697,-1203.9158449,0.00012635,2]
[342095325,1731432784723,-3511.86841969,0.00012668,2]
[342095326,1731432784748,-500.0,0.00012679,2]
[342095327,1731432784775,-157.18290822,0.00012679,2]
[342095328,1731432784798,-150.0,0.00012679,2]
[342095329,1731432784833,991.7603,0.0001258,2]
[342095330,1731432812730,-6253.27262719,0.0001268,2]
[342095331,1731432818843,-13375.0,0.0001268,2]
[342095333,1731432854205,-300.0,0.00012679,2]
[342095334,1731432862617,-22025.6706,0.0001268,2]
[342095335,1731432914828,150.0,0.00011818,2]
[342095336,1731432914858,7.34,0.00011818,2]
[342095337,1731432931648,150.0,0.00011817,2]
[342095338,1731432931668,150.0,0.00011817,2]
[342095339,1731432931688,150.0,0.00011817,2]
[342095340,1731432931708,150.0,0.00011817,2]
[342095341,1731432931730,3548.48,0.00011817,2]
[342095342,1731432973067,238.8693267,0.00021,30]
[342095343,1731433005553,2340.92,0.00011762,2]
[342095344,1731433010616,600.0,0.00011762,2]
[342095345,1731433109470,150.0,0.00011729,2]
[342095346,1731433109492,150.0,0.00011729,2]
[342095347,1731433109513,150.0,0.00011729,2]
[342095348,1731433109535,150.0,0.00011729,2]
[342095349,1731433109557,150.0,0.00011729,2]
[342095350,1731433109578,150.0,0.00011729,2]
[342095351,1731433109600,100.0,0.00011729,2]
[342095352,1731433139452,156.15,0.00011758,2]
[342095353,1731433158869,150.0,0.00011758,2]
[342095354,1731433158893,150.0,0.00011758,2]
[342095355,1731433158913,150.0,0.00011758,2]
[342095356,1731433158933,150.0,0.00011758,2]
[342095357,1731433158953,150.0,0.00011758,2]
[342095358,1731433158980,150.0,0.00011758,2]
[342095359,1731433159000,88.64,0.00011758,2]
[342095360,1731433160005,158.02,0.00011757,2]
[342095361,1731433160218,158.02,0.00011764,2]
[342095362,1731433160428,158.02,0.00011772,2]
[342095363,1731433160661,158.02,0.00011779,2]
[342095364,1731433160894,158.02,0.00011786,2]
[342095365,1731433161096,158.02,0.00011794,2]
[342095366,1731433161294,158.02,0.00011801,2]
[342095367,1731433161529,158.02,0.00011808,2]
[342095368,1731433161785,158.02,0.00011816,2]
[342095369,1731433203727,150.0,0.00012081,2]
[342095370,1731433203753,17.0,0.00012081,2]
[342095371,1731433214144,150.0,9.811e-05,2]
[342095372,1731433214173,150.0,9.811e-05,2]
[342095373,1731433214209,150.0,9.811e-05,2]
[342095374,1731433214241,150.0,9.811e-05,2]
[342095375,1731433214268,150.0,9.811e-05,2]
[342095376,1731433214290,41.47,9.811e-05,2]
[342095377,1731433214385,108.53,0.00012075,2]
[342095378,1731433214407,150.0,0.00012075,2]
[342095379,1731433214429,150.0,0.00012075,2]
[342095380,1731433214451,150.0,0.00012075,2]
[342095381,1731433214473,150.0,0.00012075,2]
[342095382,1731433214494,82.94,0.00012075,2]
[342095383,1731433223103,150.0,0.00010959,2]
[342095384,1731433223126,150.0,0.00010959,2]
[342095385,1731433223149,150.0,0.00010959,2]
[342095386,1731433223171,141.03,0.00010959,2]
[342095388,1731433263409,150.0,0.00011733,2]
[342095389,1731433263433,10.2,0.00011733,2]
[342095390,1731433280753,23900.0,0.00011731,2]
[342095391,1731433291583,-1112.08728888,0.0001248,2]
[342095393,1731433421192,157.37,9.369e-05,2]
[342095395,1731433489400,-3000.0,0.0001255,2]
[342095396,1731433489424,-1752.0,0.00012553,2]
[342095397,1731433489447,-300.0,0.00012569,2]
[342095398,1731433489473,-3000.0,0.0001257,2]
[342095399,1731433489495,-3000.0,0.0001257,2]
[342095400,1731433489516,-3000.0,0.0001257,2]
[342095401,1731433489537,-3000.0,0.0001257,2]
[342095402,1731433489559,-3000.0,0.0001257,2]
[342095403,1731433489595,-1393.621,0.0001257,2]
[342095404,1731433489642,-160.08508924,0.00012579,2]
[342095405,1731433489920,-13402.97,0.0001258,2]
[342095406,1731433489944,-5970.1763135,0.0001258,2]
[342095407,1731433489968,-157.34,0.00012606,2]
[342095408,1731433489997,-5970.17631347,0.00012616,2]
[342095409,1731433490020,-150.0,0.00012649,2]
[342095410,1731433490044,-2743.63128379,0.00012651,2]
[342095411,1731433490614,-3226.54502968,0.00012651,2]
[342095412,1731433490637,-160.0850892,0.00012659,2]
[342095413,1731433490658,-5149.07734807,0.0001267,2]
[342095414,1731433490683,-150.99,0.0001267,2]
[342095415,1731433490705,-4404.05,0.0001267,2]
[342095416,1731433490729,-501.46962194,0.00012673,2]
[342095417,1731433490751,-641.84453191,0.00012673,2]
[342095418,1731433490773,-500.0,0.00012673,2]
[342095419,1731433490795,-299.99,0.00012678,2]
[342095420,1731433490816,-15331.74738764,0.00012679,2]
[342095421,1731433490840,-19634.20099156,0.0001268,2]
[342095422,1731433491269,-50000.0,0.0001268,2]
[342095423,1731433492002,-50000.0,0.0001268,2]
[342095424,1731433493784,-50000.0,0.0001268,2]
[342095425,1731433494392,-50000.0,0.0001268,2]
[342095426,1731433497774,-50000.0,0.0001268,2]
[342095427,1731433498117,-50000.0,0.0001268,2]
[342095428,1731433500203,-50000.0,0.0001268,2]
[342095430,1731433526551,250.0,0.00011818,2]
[342095433,1731433564755,554.39,0.00011817,2]
[342095439,1731433640532,436.71,0.00011913,2]
[342095440,1731433676479,150.0,0.00011942,2]
[342095441,1731433676500,150.0,0.00011942,2]
[342095442,1731433676522,150.0,0.00011942,2]
[342095443,1731433676544,108.26,0.00011942,2]
[342095452,1731433755954,150.0,0.00011956,2]
[342095453,1731433755977,84.75,0.00011956,2]
[342095454,1731433764981,150.0,0.00012,2]
[342095455,1731433765002,150.0,0.00012,2]
[342095456,1731433765022,150.0,0.00012,2]
[342095457,1731433765043,150.0,0.00012,2]
[342095458,1731433765064,150.0,0.00012,2]
[342095459,1731433765088,150.0,0.00012,2]
[342095460,1731433765108,150.0,0.00012,2]
[342095461,1731433765129,208.29671112,0.00012,2]
[342095462,1731433765150,12741.70328888,0.00012,2]
[342095463,1731433803229,150.0,0.00012,2]
[342095464,1731433803350,150.0,0.00012,2]
[342095465,1731433803523,150.0,0.00012,2]
[342095466,1731433803757,150.0,0.00012,2]
[342095467,1731433803962,150.0,0.00012,2]
[342095468,1731433804439,150.0,0.00012,2]
[342095469,1731433804527,150.0,0.00012,2]
[342095470,1731433807104,3724.77,0.00012048,2]
[342095471,1731433809312,242.26094116,0.00012,2]
[342095481,1731433831972,-10000.0,0.000125,2]
[342095482,1731433831986,-234.75,0.00012553,2]
[342095483,1731433831996,-2457.1632,0.0001258,2]
[342095484,1731433832005,-4094.53,0.0001258,2]
[342095485,1731433832014,-5000.0,0.0001258,2]
[342095486,1731433832024,-276.0017,0.0001258,2]
[342095487,1731433832033,-171.348901,0.0001258,2]
[342095488,1731433832043,-4216.92936826,0.0001258,2]
[342095489,1731433832052,-1728.0,0.000126,2]
[342095490,1731433832061,-4216.92936817,0.00012616,2]
[342095491,1731433832071,-4216.92936817,0.00012651,2]
[342095492,1731433832080,-150.0,0.00012658,2]
[342095493,1731433832090,-150.0,0.00012679,2]
[342095494,1731433832100,-201462.7780404,0.0001268,2]
[342095495,1731433832114,-107745.76972257,0.0001268,2]
[342095496,1731433832126,-13981.59895966,0.0001268,2]
[342095497,1731433832520,-1024.58552763,0.0001268,2]
[342095503,1731433838178,-231814.72080275,0.0001268,2]
[342095504,1731433838189,-4216.92936817,0.00012687,2]
[342095505,1731433838200,-167.0,0.00012702,2]
[342095506,1731433838209,-4216.92936817,0.00012722,2]
[342095507,1731433838219,-299.99,0.0001274,2]
[342095508,1731433838230,-4216.92936817,0.00012758,2]
[342095509,1731433838241,-2249.02869759,0.0001279,2]
[342095510,1731433838250,-4216.92936817,0.00012793,2]
[342095511,1731433838260,-68999.00205521,0.000128,2]
[342095512,1731433838269,-676.87533788,0.000128,2]
[342095513,1731433838280,-4216.92936817,0.00012829,2]
[342095514,1731433838289,-335.711085,0.00012873,2]
[342095515,1731433838298,-150.0,0.00012877,2]
[342095516,1731433838308,-1040963.21013825,0.00012899,2]
[342095517,1731433838319,-49066.12001271,0.00012899,2]
[342095518,1731433838333,-11498.81054073,0.00012899,2]
[342095519,1731433838346,-560.64457904,0.000129,2]
[342095520,1731433838359,-8254.34870426,0.000129,3]
[342095521,1731433838394,-79748.47803863,0.000129,3]
[342095522,1731433838422,-13520.91364123,0.000129,3]
[342095523,1731433838485,-2934.05361551,0.000129,3]
[342095524,1731433838505,-877.46,0.000129,3]
[342095525,1731433838525,-263664.80188437,0.000129,3]
[342095526,1731433839403,-14804.42710202,0.000129,3]
[342095527,1731433839415,-1603.96580647,0.000129,3]
[342095528,1731433839426,-1937.6028786,0.000129,3]
[342095529,1731433839478,-955.195,0.000129,3]
[342095530,1731433839493,-264.43855,0.000129,3]
[342095539,1731433839763,-5682.89661916,0.000129,3]
[342095811,1731433842675,-3935.08186163,0.00012864,2]
[342095812,1731433842687,-281.84750654,0.00012864,2]
[342095813,1731433842699,-1000.0,0.00012899,2]
[342095814,1731433842711,-7992.33349387,0.000129,3]
[342095815,1731433842816,-4708.82798906,0.000129,3]
[342095816,1731433842827,-438.678,0.000129,3]
[342095817,1731433842857,-8858.72917269,0.000129,3]
[342095818,1731433842868,-48778.79171743,0.000129,3]
[342095819,1731433842878,-45026.6190772,0.000129,3]
[342095820,1731433842925,-785.836757,0.000129,3]
[342095821,1731433842936,-3509.4123162,0.000129,3]
[342095824,1731433843019,-3486.05,0.000129,3]
[342095831,1731433846754,-498.64183754,0.00012873,2]
[342095832,1731433846764,-1023.45886366,0.000129,3]
[342095833,1731433846828,-30615.4645881,0.000129,3]
[342095834,1731433846841,-4417.4682,0.000129,3]
[342095835,1731433846852,-565.134902,0.000129,3]
[342095836,1731433846864,-7174.90220855,0.000129,3]
[342095837,1731433846874,-430.19319665,0.000129,2]
[342095838,1731433846884,-6160.0636196,0.000129,2]
[342095839,1731433846896,-3527.58667362,0.000129,2]
[342095840,1731433846905,-251.603687,0.000129,2]
[342095841,1731433846915,-151.57572,0.000129,2]
[342095842,1731433846925,-151.57572,0.000129,2]
[342095843,1731433846934,-151.0,0.000129,2]
[342095844,1731433846943,-1809.237088,0.000129,2]
[342095845,1731433846953,-1809.237088,0.000129,2]
[342095846,1731433846962,-151.0,0.000129,2]
[342095847,1731433846971,-151.0,0.000129,2]
[342095848,1731433846980,-2001.9394043,0.000129,2]
[342095849,1731433846989,-3000.0,0.000129,2]
[342095850,1731433847000,-217.0,0.00012904,2]
[342095851,1731433847010,-1713.0,0.00012904,2]
[342095852,1731433847020,-453.0,0.00012968,2]
[342095853,1731433847029,-1254.0,0.00012968,2]
[342095854,1731433847038,-628.0,0.00012968,2]
[342095855,1731433847052,-150.0,0.00012968,2]
[342095856,1731433847061,-1991.0,0.00012968,2]
[342095857,1731433847071,-559.0,0.00012968,2]
[342095858,1731433847080,-1923.0,0.00012968,2]
[342095859,1731433847090,-3745.0,0.00012968,2]
[342095860,1731433847099,-814.0,0.00012968,2]
[342095861,1731433847111,-1259.0,0.00012968,2]
[342095862,1731433847120,-3487.0,0.00012968,2]
[342095863,1731433847130,-922.0,0.00012968,2]
[342095864,1731433847140,-5924.0,0.00012968,2]
[342095865,1731433847151,-150.0,0.00012968,2]
[342095866,1731433847160,-1159.0,0.00012968,2]
[342095867,1731433847169,-165.12,0.00012968,2]
[342095868,1731433847182,-200.0,0.00012968,2]
[342095869,1731433847192,-500.0,0.00012973,2]
[342095870,1731433847202,-151.0,0.00012986,2]
[342095871,1731433847211,-274.95021,0.00012986,2]
[342095872,1731433847221,-151.0,0.00012986,2]
[342095873,1731433847231,-151.0,0.00012986,2]
[342095874,1731433847241,-151.0,0.00012986,2]
[342095875,1731433847253,-151.0,0.00012986,2]
[342095876,1731433847263,-151.0,0.00012986,2]
[342095877,1731433847274,-151.0,0.00012986,2]
[342095878,1731433847285,-151.0,0.00012986,2]
[342095879,1731433847295,-154.277464,0.00012986,2]
[342095880,1731433847305,-151.0,0.00012986,2]
[342095881,1731433847315,-151.0,0.00012986,2]